fUSD/lending_fUSD_20241119
["ID","MTS","AMOUNT","RATE_DAILY","PERIOD"]
[342664516,1732029040187,-500.0,0.00021684,2]
[342664518,1732029040198,-500.0,0.00021684,2]
[342664520,1732029040208,-500.0,0.00021684,2]
[342664522,1732029040218,-500.0,0.00021684,2]
[342664524,1732029040227,-500.0,0.00021684,2]
[342664526,1732029040237,-500.0,0.00021684,2]
[342664528,1732029040247,-500.0,0.00021684,2]
[342664530,1732029040257,-500.0,0.00021684,2]
[342664532,1732029040267,-500.0,0.00021684,2]
[342664534,1732029040283,-500.0,0.00021684,2]
[342664536,1732029040293,-500.0,0.00021684,2]
[342664537,1732029040302,-500.0,0.00021684,2]
[342664539,1732029040312,-500.0,0.00021684,2]
[342664542,1732029040323,-500.0,0.00021684,2]
[342664543,1732029040333,-500.0,0.00021684,2]
[342664546,1732029040342,-500.0,0.00021684,2]
[342664548,1732029040352,-500.0,0.00021684,2]
[342664550,1732029040362,-500.0,0.00021684,2]
[342664552,1732029040372,-500.0,0.00021684,2]
[342664554,1732029040382,-500.0,0.00021684,2]
[342664555,1732029040392,-500.0,0.00021684,2]
[342664558,1732029040402,-500.0,0.00021684,2]
[342664560,1732029040412,-500.0,0.00021684,2]
[342664562,1732029040422,-500.0,0.00021684,2]
[342664564,1732029040433,-500.0,0.00021684,2]
[342664566,1732029040443,-500.0,0.00021684,2]
[342664568,1732029040453,-500.0,0.00021684,2]
[342664570,1732029040463,-500.0,0.00021684,2]
[342664572,1732029040473,-500.0,0.00021684,2]
[342664574,1732029040483,-500.0,0.00021684,2]
[342664576,1732029040493,-500.0,0.00021684,2]
[342664578,1732029040503,-500.0,0.00021684,2]
[342664580,1732029040513,-500.0,0.00021684,2]
[342664582,1732029040528,-500.0,0.00021684,2]
[342664584,1732029040538,-500.0,0.00021684,2]
[342664586,1732029040547,-500.0,0.00021684,2]
[342664587,1732029040558,-500.0,0.00021684,2]
[342664589,1732029040567,-500.0,0.00021684,2]
[342664591,1732029040577,-500.0,0.00021684,2]
[342664593,1732029040587,-500.0,0.00021684,2]
[342664596,1732029040598,-500.0,0.00021684,2]
[342664598,1732029040608,-500.0,0.00021684,2]
[342664600,1732029040618,-500.0,0.00021684,2]
[342664602,1732029040627,-500.0,0.00021684,2]
[342664604,1732029040639,-500.0,0.00021684,2]
[342664606,1732029040649,-500.0,0.00021684,2]
[342664608,1732029040659,-500.0,0.00021684,2]
[342664610,1732029040669,-500.0,0.00021684,2]
[342664612,1732029040678,-500.0,0.00021684,2]
[342664614,1732029040688,-500.0,0.00021684,2]
[342664616,1732029040699,-500.0,0.00021684,2]
[342664618,1732029040708,-500.0,0.00021684,2]
[342664620,1732029040718,-500.0,0.00021684,2]
[342664621,1732029040729,-500.0,0.00021684,2]
[342664622,1732029040742,-500.0,0.00021684,2]
[342664624,1732029040753,-500.0,0.00021684,2]
[342664626,1732029040764,-500.0,0.00021684,2]
[342664627,1732029040778,-500.0,0.00021684,2]
[342664628,1732029040788,-500.0,0.00021684,2]
[342664629,1732029041133,-500.0,0.00021684,2]
[342664630,1732029041151,-500.0,0.00021684,2]
[342664631,1732029041172,-500.0,0.00021684,2]
[342664632,1732029041191,-500.0,0.00021684,2]
[342664633,1732029041201,-500.0,0.00021684,2]
[342664634,1732029041211,-500.0,0.00021684,2]
[342664635,1732029041220,-500.0,0.00021684,2]
[342664636,1732029041230,-500.0,0.00021684,2]
[342664637,1732029041239,-500.0,0.00021684,2]
[342664638,1732029041249,-500.0,0.00021684,2]
[342664639,1732029041259,-500.0,0.00021684,2]
[342664640,1732029041268,-500.0,0.00021684,2]
[342664641,1732029041282,-500.0,0.00021684,2]
[342664642,1732029041292,-500.0,0.00021684,2]
[342664643,1732029041302,-500.0,0.00021684,2]
[342664644,1732029041312,-500.0,0.00021684,2]
[342664645,1732029041322,-500.0,0.00021684,2]
[342664646,1732029041332,-500.0,0.00021684,2]
[342664647,1732029041343,-500.0,0.00021684,2]
[342664648,1732029041353,-500.0,0.00021684,2]
[342664649,1732029041363,-500.0,0.00021684,2]
[342664650,1732029041373,-500.0,0.00021684,2]
[342664651,1732029041382,-500.0,0.00021684,2]
[342664652,1732029041392,-500.0,0.00021684,2]
[342664653,1732029041401,-500.0,0.00021684,2]
[342664654,1732029041411,-500.0,0.00021684,2]
[342664655,1732029041420,-500.0,0.00021684,2]
[342664656,1732029041430,-500.0,0.00021684,2]
[342664657,1732029041440,-500.0,0.00021684,2]
[342664658,1732029041449,-1610.073137,0.00021825,2]
[342664659,1732029041459,-778.9,0.00021826,30]
[342664660,1732029041468,-770.39,0.00021899,2]
[342664661,1732029041477,-500.0,0.00021899,2]
[342664662,1732029041487,-500.0,0.00021899,2]
[342664663,1732029041496,-500.0,0.00021899,2]
[342664664,1732029041506,-574.26,0.00021899,2]
[342664665,1732029041515,-500.0,0.00021899,2]
[342664666,1732029041529,-370.08,0.00021899,2]
[342664667,1732029041539,-253.18,0.00021899,2]
[342664668,1732029041548,-500.0,0.00021899,2]
[342664669,1732029041559,-500.0,0.00021899,2]
[342664670,1732029041569,-500.0,0.00021899,2]
[342664671,1732029041579,-500.0,0.00021899,2]
[342664672,1732029041590,-1076.93,0.00021899,2]
[342664673,1732029041600,-500.0,0.00021899,2]
[342664674,1732029041610,-500.0,0.00021899,2]
[342664675,1732029041619,-500.0,0.00021899,2]
[342664676,1732029041629,-500.0,0.00021899,2]
[342664677,1732029041638,-500.0,0.00021899,2]
[342664678,1732029041648,-500.0,0.00021899,2]
[342664679,1732029041658,-645.67813517,0.00021899,2]
[342664680,1732029041667,-500.0,0.00021899,2]
[342664681,1732029041677,-500.0,0.00021899,2]
[342664682,1732029041686,-500.0,0.00021899,2]
[342664683,1732029041696,-500.0,0.00021899,2]
[342664684,1732029041707,-500.0,0.00021899,2]
[342664685,1732029041717,-500.0,0.00021899,2]
[342664686,1732029041727,-500.0,0.00021899,2]
[342664687,1732029041740,-500.0,0.00021899,2]
[342664688,1732029041749,-500.0,0.00021899,2]
[342664689,1732029041759,-500.0,0.00021899,2]
[342664690,1732029041768,-500.0,0.00021899,2]
[342664691,1732029041783,-500.0,0.00021899,2]
[342664692,1732029041792,-500.0,0.00021899,2]
[342664693,1732029041802,-500.0,0.00021899,2]
[342664694,1732029041814,-500.0,0.00021899,2]
[342664695,1732029041825,-500.0,0.00021899,2]
[342664696,1732029041835,-500.0,0.00021899,2]
[342664697,1732029041845,-500.0,0.00021899,2]
[342664698,1732029041856,-500.0,0.00021899,2]
[342664699,1732029041865,-500.0,0.00021899,2]
[342664700,1732029041874,-500.0,0.00021899,2]
[342664701,1732029041884,-500.0,0.00021899,2]
[342664702,1732029041894,-500.0,0.00021899,2]
[342664703,1732029041903,-500.0,0.00021899,2]
[342664704,1732029041913,-814.96,0.00021899,2]
[342664705,1732029041923,-500.0,0.00021899,2]
[342664706,1732029041933,-500.0,0.00021899,2]
[342664707,1732029041943,-500.0,0.00021899,2]
[342664708,1732029041953,-500.0,0.00021899,2]
[342664709,1732029041966,-500.0,0.00021899,2]
[342664710,1732029041976,-500.0,0.00021899,2]
[342664711,1732029041986,-500.0,0.00021899,2]
[342664712,1732029041996,-412.37543047,0.00021899,2]
[342664713,1732029042006,-1300.0,0.000219,7]
[342664714,1732029042016,-500.0,0.00021917,2]
[342664715,1732029042029,-368.06838268,0.00021917,2]
[342664716,1732029042039,-500.0,0.00021917,2]
[342664717,1732029042048,-500.0,0.00021917,2]
[342664718,1732029042058,-500.0,0.00021917,2]
[342664719,1732029042067,-500.0,0.00021917,2]
[342664720,1732029042077,-1971.75,0.00021918,2]
[342664721,1732029042087,-52034.284,0.000224,2]
[342664722,1732029042098,-5890.75190233,0.00022563,2]
[342664723,1732029042107,-500.0,0.000229,2]
[342664724,1732029042117,-200.0,0.00023,2]
[342664725,1732029042128,-264.67,0.00023595,2]
[342664726,1732029042138,-778.9,0.0002441,30]
[342664727,1732029042147,-500.0,0.000245,2]
[342664728,1732029042156,-1000.0,0.00024658,2]
[342664729,1732029042166,-281.362149,0.00024658,2]
[342664730,1732029042176,-193.66,0.00024658,2]
[342664731,1732029042185,-150.0,0.00025,2]
[342664732,1732029042195,-5000.0,0.00025,5]
[342664733,1732029042205,-280.0,0.000253,10]
[342664734,1732029042215,-500.0,0.00025656,2]
[342664735,1732029042226,-264.67,0.00025792,2]
[342664736,1732029042236,-2128.759,0.00026334,13]
[342664737,1732029042246,-184.541,0.00026334,13]
[342664738,1732029042256,-3000.0,0.000267,2]
[342664739,1732029042267,-778.9,0.00026994,30]
[342664740,1732029042278,-1168.75725302,0.00027397,30]
[342664741,1732029042288,-5455.17,0.00027397,10]
[342664742,1732029042298,-8517.34,0.00027397,10]
[342664743,1732029042308,-661.48,0.00027697,2]
[342664744,1732029042317,-553.92,0.00027697,2]
[342664745,1732029042328,-596.88405199,0.00027697,2]
[342664746,1732029042337,-10168.88,0.00027698,2]
[342664747,1732029042347,-391.0,0.0002783,15]
[342664748,1732029042357,-264.67,0.00027988,2]
[342664749,1732029042366,-850.904353,0.000282,6]
[342664750,1732029042376,-2000.0,0.00028595,120]
[342664751,1732029042386,-500.0,0.000292,6]
[342664752,1732029042396,-3000.0,0.000295,2]
[342664753,1732029042406,-426.16946794,0.00029536,2]
[342664754,1732029042417,-778.9,0.00029578,30]
[342664755,1732029042428,-500.0,0.00029723,2]
[342664756,1732029042439,-500.0,0.00029723,2]
[342664757,1732029042450,-400.45878892,0.00029723,2]
[342664758,1732029042461,-500.0,0.00029723,2]
[342664759,1732029042472,-500.0,0.00029723,2]
[342664760,1732029042481,-426.16946794,0.00029859,2]
[342664761,1732029042491,-426.16946794,0.00029915,2]
[342664762,1732029042502,-1000.0,0.00029999,2]
[342664763,1732029042514,-210.0,0.0003,2]
[342664764,1732029042526,-193.66,0.00030137,2]
[342664765,1732029042536,-264.67,0.00030185,2]
[342664766,1732029042546,-500.0,0.000302,6]
[342664767,1732029042556,-426.16946794,0.00030226,2]
[342664768,1732029042565,-426.16946794,0.00030609,2]
[342664769,1732029042575,-548.0,0.00030613,30]
[342664770,1732029042585,-426.16946794,0.00030891,2]
[342664771,1732029042595,-426.16946794,0.00031105,2]
[342664772,1732029042605,-500.0,0.000312,6]
[342664773,1732029042614,-5890.75190233,0.00031232,4]
[342664774,1732029042624,-426.16946794,0.00031286,2]
[342664775,1732029042634,-150.0,0.00031364,2]
[342664776,1732029042643,-150.0,0.00031364,2]
[342664777,1732029042654,-200.0,0.00031364,2]
[342664778,1732029042663,-2000.0,0.00031364,30]
[342664779,1732029042674,-3000.0,0.00031364,120]
[342664780,1732029042683,-500.0,0.00031506,30]
[342664781,1732029042695,-500.0,0.00031506,30]
[342664782,1732029042705,-426.16946794,0.00031594,2]
[342664783,1732029042715,-426.16946794,0.00031821,2]
[342664784,1732029042724,-770.39,0.00031911,2]
[342664785,1732029042739,-500.0,0.00031911,2]
[342664786,1732029042749,-500.0,0.00031911,2]
[342664787,1732029042759,-396.36806318,0.00031911,2]
[342664788,1732029042768,-500.0,0.00031911,2]
[342664789,1732029042780,-500.0,0.00031911,2]
[342664790,1732029042790,-500.0,0.00031911,2]
[342664791,1732029042800,-532.76,0.00031911,2]
[342664792,1732029042810,-1076.93,0.00031911,2]
[342664793,1732029042820,-500.0,0.00031911,2]
[342664794,1732029042830,-385.97831204,0.00031911,2]
[342664795,1732029042840,-500.0,0.00031911,2]
[342664796,1732029042849,-500.0,0.00031911,2]
[342664797,1732029042859,-500.0,0.00031911,2]
[342664798,1732029042868,-500.0,0.00031911,2]
[342664799,1732029042877,-500.0,0.00031911,2]
[342664800,1732029042887,-500.0,0.00031911,2]
[342664801,1732029042897,-500.0,0.00031911,2]
[342664802,1732029042907,-500.0,0.00031911,2]
[342664803,1732029042916,-500.0,0.00031911,2]
[342664804,1732029042926,-500.0,0.00031911,2]
[342664805,1732029042936,-500.0,0.00031911,2]
[342664806,1732029042945,-500.0,0.00031911,2]
[342664807,1732029042955,-500.0,0.00031911,2]
[342664808,1732029042964,-190.77335395,0.00031911,2]
[342664809,1732029042974,-500.0,0.00031911,2]
[342664810,1732029042983,-500.0,0.00031911,2]
[342664811,1732029042993,-500.0,0.00031911,2]
[342664812,1732029043002,-500.0,0.00031911,2]
[342664813,1732029043011,-500.0,0.00031911,2]
[342664814,1732029043023,-500.0,0.00031911,2]
[342664815,1732029043033,-500.0,0.00031911,2]
[342664816,1732029043042,-814.96,0.00031911,2]
[342664817,1732029043052,-500.0,0.00031911,2]
[342664818,1732029043063,-500.0,0.00031911,2]
[342664819,1732029043072,-308.37053465,0.00031911,2]
[342664820,1732029043082,-500.0,0.00031911,2]
[342664821,1732029043092,-500.0,0.00031911,30]
[342664822,1732029043102,-770.39,0.00032008,2]
[342664823,1732029043112,-500.0,0.00032008,2]
[342664824,1732029043121,-500.0,0.00032008,2]
[342664825,1732029043131,-500.0,0.00032008,2]
[342664826,1732029043143,-500.0,0.00032008,2]
[342664827,1732029043153,-500.0,0.00032008,2]
[342664828,1732029043163,-1076.93,0.00032008,2]
[342664829,1732029043173,-500.0,0.00032008,2]
[342664831,1732029043183,-500.0,0.00032008,2]
[342664832,1732029043192,-500.0,0.00032008,2]
[342664833,1732029043201,-500.0,0.00032008,2]
[342664834,1732029043211,-500.0,0.00032008,2]
[342664835,1732029043220,-500.0,0.00032008,2]
[342664836,1732029043229,-500.0,0.00032008,2]
[342664837,1732029043238,-500.0,0.00032008,2]
[342664838,1732029043248,-500.0,0.00032008,2]
[342664839,1732029043257,-500.0,0.00032008,2]
[342664840,1732029043266,-500.0,0.00032008,2]
[342664841,1732029043279,-500.0,0.00032008,2]
[342664842,1732029043288,-500.0,0.00032008,2]
[342664843,1732029043297,-500.0,0.00032008,2]
[342664844,1732029043306,-500.0,0.00032008,2]
[342664845,1732029043317,-375.96470361,0.00032008,2]
[342664846,1732029043327,-500.0,0.00032008,2]
[342664847,1732029043336,-500.0,0.00032008,2]
[342664848,1732029043346,-500.0,0.00032008,2]
[342664849,1732029043356,-814.96,0.00032008,2]
[342664850,1732029043365,-500.0,0.00032008,2]
[342664851,1732029043375,-500.0,0.00032008,2]
[342664852,1732029043384,-500.0,0.00032008,2]
[342664853,1732029043394,-500.0,0.00032008,30]
[342664854,1732029043403,-220.0,0.00032009,2]
[342664855,1732029043413,-778.9,0.00032162,30]
[342664856,1732029043422,-426.16946794,0.00032195,2]
[342664857,1732029043432,-3000.0,0.000322,2]
[342664858,1732029043442,-264.67,0.00032382,2]
[342664859,1732029043452,-426.16946794,0.00032476,2]
[342664860,1732029043462,-946.28776168,0.00032676,2]
[342664861,1732029043473,-426.16946794,0.00032713,2]
[342664862,1732029043483,-426.16946794,0.00032952,2]
[342664863,1732029043493,-150.0,0.00033,14]
[342664864,1732029043503,-1971.75,0.00033151,120]
[342664865,1732029043512,-426.16946794,0.00033156,2]
[342664866,1732029043522,-2000.0,0.00033389,120]
[342664867,1732029043532,-426.16946794,0.00033659,2]
[342664868,1732029043543,-768.0,0.00033674,30]
[342664869,1732029043553,-426.16946794,0.00033929,2]
[342664870,1732029043561,-150.0,0.00034,60]
[342664871,1732029043571,-426.16946794,0.00034049,2]
[342664872,1732029043580,-15230.53,0.00034246,5]
[342664873,1732029043590,-426.16946794,0.00034254,2]
[342664874,1732029043628,-264.67,0.00034578,2]
[342664875,1732029043637,-180.94096748,0.000346,120]
[342664876,1732029043647,-180.94096747,0.000346,120]
[342664877,1732029043656,-180.94096747,0.000346,120]
[342664878,1732029043665,-426.16946794,0.00034679,2]
[342664879,1732029043675,-778.9,0.00034746,120]
[342664880,1732029043684,-2700.0,0.000349,12]
[342664881,1732029043693,-426.16946794,0.00034987,2]
[342664882,1732029043702,-3000.0,0.00035,2]
[342664883,1732029043711,-189.37504185,0.00035,120]
[342664884,1732029043721,-426.16946794,0.00035107,2]
[342664885,1732029043730,-426.16946794,0.00035546,2]
[342664886,1732029043745,-1000.0,0.00035616,120]
[342664887,1732029043754,-1000.0,0.00035616,120]
[342664888,1732029043764,-290.13917342,0.00035616,120]
[342664889,1732029043775,-193.66,0.00035616,2]
[342664890,1732029043786,-426.16946794,0.00035721,2]
[342664891,1732029043795,-426.16946794,0.00035973,2]
[342664892,1732029043806,-426.16946794,0.00036339,2]
[342664893,1732029043816,-426.16946794,0.00036594,2]
[342664894,1732029043826,-1500.0,0.00036662,2]
[342664895,1732029043835,-264.67,0.00036775,2]
[342664896,1732029043844,-426.16946794,0.00036874,2]
[342664897,1732029043853,-837.0,0.00037042,30]
[342664898,1732029043863,-426.16946794,0.00037089,2]
[342664899,1732029043872,-426.16946794,0.00037298,2]
[342664900,1732029043882,-778.9,0.0003733,120]
[342664901,1732029043892,-150.0,0.00037432,2]
[342664902,1732029043902,-150.0,0.00037432,2]
[342664903,1732029043911,-250.48412212,0.00037432,2]
[342664904,1732029043922,-500.0,0.00037577,2]
[342664905,1732029043931,-426.16946794,0.00037634,2]
[342664906,1732029043941,-3000.0,0.000377,2]
[342664907,1732029043950,-1500.0,0.00037734,2]
[342664908,1732029043960,-426.16946794,0.00037831,2]
[342664909,1732029043970,-1500.0,0.00037857,2]
[342664910,1732029043979,-2000.0,0.00038183,120]
[342664911,1732029043988,-426.16946794,0.00038343,2]
[342664912,1732029043998,-221.0,0.0003842,2]
[342664913,1732029044007,-426.16946794,0.00038432,2]
[342664914,1732029044016,-1500.0,0.00038527,2]
[342664915,1732029044027,-361.0,0.00038538,2]
[342664916,1732029044037,-300.0,0.00038538,2]
[342664917,1732029044046,-150.0,0.00038538,2]
[342664918,1732029044055,-150.0,0.00038538,2]
[342664919,1732029044064,-150.0,0.00038538,2]
[342664920,1732029044073,-150.0,0.00038538,2]
[342664921,1732029044082,-7366.0,0.000388,120]
[342664922,1732029044091,-1500.0,0.00038823,2]
[342664923,1732029044100,-426.16946794,0.0003885,2]
[342664924,1732029044109,-150.0,0.00038957,2]
[342664925,1732029044118,-150.0,0.0003896,2]
[342664926,1732029044128,-264.67,0.00038971,2]
[342664927,1732029044137,-150.0,0.00038992,2]
[342664928,1732029044145,-150.0,0.00039048,2]
[342664929,1732029044154,-150.0,0.00039092,2]
[342664930,1732029044163,-426.16946794,0.000391,2]
[342664931,1732029044172,-150.0,0.00039135,2]
[342664932,1732029044181,-150.0,0.00039167,2]
[342664933,1732029044189,-150.0,0.00039168,2]
[342664934,1732029044199,-150.0,0.00039171,2]
[342664935,1732029044207,-150.0,0.00039177,2]
[342664936,1732029044216,-426.16946794,0.00039178,2]
[342664937,1732029044225,-150.0,0.00039179,2]
[342664938,1732029044233,-150.0,0.00039186,2]
[342664939,1732029044242,-500.0,0.000392,4]
[342664940,1732029044251,-150.0,0.00039218,2]
[342664941,1732029044260,-150.0,0.0003923,2]
[342664942,1732029044268,-150.0,0.0003925,2]
[342664943,1732029044278,-150.0,0.00039263,2]
[342664944,1732029044287,-150.0,0.00039264,2]
[342664945,1732029044296,-150.0,0.00039264,2]
[342664946,1732029044311,-150.0,0.00039265,2]
[342664947,1732029044323,-150.0,0.00039269,2]
[342664948,1732029044332,-150.0,0.000393,2]
[342664949,1732029044342,-150.0,0.00039304,2]
[342664950,1732029044351,-150.0,0.00039304,2]
[342664951,1732029044362,-150.0,0.00039316,2]
[342664952,1732029044371,-150.0,0.00039325,2]
[342664953,1732029044382,-150.0,0.00039334,2]
[342664954,1732029044391,-150.0,0.00039341,2]
[342664955,1732029044400,-150.0,0.00039349,2]
[342664956,1732029044409,-150.0,0.00039355,2]
[342664957,1732029044417,-150.0,0.00039367,2]
[342664958,1732029044427,-150.0,0.00039371,2]
[342664959,1732029044435,-150.0,0.00039374,2]
[342664960,1732029044444,-150.0,0.00039402,2]
[342664961,1732029044454,-150.0,0.00039412,2]
[342664962,1732029044465,-150.0,0.00039423,2]
[342664963,1732029044474,-150.0,0.00039431,2]
[342664964,1732029044484,-150.0,0.00039433,2]
[342664965,1732029044494,-150.0,0.00039437,2]
[342664966,1732029044504,-150.0,0.00039455,2]
[342664967,1732029044515,-150.0,0.00039462,2]
[342664968,1732029044527,-150.0,0.00039462,2]
[342664969,1732029044540,-150.0,0.0003947,2]
[342664970,1732029044549,-150.0,0.0003947,2]
[342664971,1732029044558,-150.0,0.00039489,2]
[342664972,1732029044567,-150.0,0.00039494,2]
[342664973,1732029044577,-661.48,0.00039494,2]
[342664974,1732029044586,-4768.93755768,0.000395,30]
[342664975,1732029044595,-150.0,0.00039503,2]
[342664976,1732029044604,-1500.0,0.00039526,2]
[342664977,1732029044613,-150.0,0.00039539,2]
[342664978,1732029044623,-150.0,0.00039568,2]
[342664979,1732029044632,-150.0,0.00039587,2]
[342664980,1732029044641,-150.0,0.00039594,2]
[342664981,1732029044651,-150.0,0.00039596,2]
[342664982,1732029044660,-426.16946794,0.00039603,2]
[342664983,1732029044669,-150.0,0.00039606,2]
[342664984,1732029044679,-150.0,0.00039607,2]
[342664985,1732029044688,-150.0,0.00039614,2]
[342664986,1732029044697,-150.0,0.00039632,2]
[342664987,1732029044707,-150.0,0.00039636,2]
[342664988,1732029044717,-150.0,0.00039641,2]
[342664989,1732029044727,-150.0,0.00039642,2]
[342664990,1732029044740,-150.0,0.00039662,2]
[342664991,1732029044750,-150.0,0.00039675,2]
[342664992,1732029044758,-150.0,0.00039681,2]
[342664993,1732029044767,-150.0,0.00039686,2]
[342664994,1732029044778,-150.0,0.00039689,2]
[342664995,1732029044789,-150.0,0.0003969,2]
[342664996,1732029044798,-150.0,0.00039693,2]
[342664997,1732029044807,-150.0,0.0003972,2]
[342664998,1732029044819,-150.0,0.00039741,2]
[342664999,1732029044827,-150.0,0.00039751,2]
[342665000,1732029044837,-150.0,0.0003976,2]
[342665001,1732029044846,-150.0,0.00039776,2]
[342665002,1732029044856,-150.0,0.00039785,2]
[342665003,1732029044866,-150.0,0.00039787,2]
[342665004,1732029044877,-150.0,0.00039792,2]
[342665005,1732029044887,-150.0,0.00039794,2]
[342665006,1732029044896,-150.0,0.00039798,2]
[342665007,1732029044906,-150.0,0.00039799,2]
[342665008,1732029044915,-150.0,0.00039799,2]
[342665009,1732029044924,-2000.0,0.000398,2]
[342665010,1732029044933,-4100.0,0.000398,14]
[342665011,1732029044943,-150.0,0.00039802,2]
[342665012,1732029044952,-150.0,0.00039809,2]
[342665013,1732029044961,-150.0,0.00039824,2]
[342665014,1732029044977,-150.0,0.00039824,2]
[342665015,1732029044990,-150.0,0.00039829,2]
[342665016,1732029045001,-150.0,0.0003983,2]
[342665017,1732029045010,-150.0,0.00039835,2]
[342665018,1732029045019,-150.0,0.00039851,2]
[342665019,1732029045030,-150.0,0.00039862,2]
[342665020,1732029045040,-150.0,0.00039866,2]
[342665021,1732029045051,-150.0,0.00039872,2]
[342665022,1732029045061,-150.0,0.00039873,2]
[342665023,1732029045070,-150.0,0.00039876,2]
[342665024,1732029045080,-150.0,0.00039877,2]
[342665025,1732029045089,-150.0,0.00039888,2]
[342665026,1732029045099,-65640.17867186,0.00039898,120]
[342665027,1732029045108,-6303.251524,0.000399,2]
[342665028,1732029045118,-5500.0,0.000399,14]
[342665029,1732029045127,-150.0,0.00039907,2]
[342665030,1732029045137,-778.9,0.00039914,120]
[342665031,1732029045147,-150.0,0.00039915,2]
[342665032,1732029045156,-150.0,0.00039964,2]
[342665033,1732029045166,-150.0,0.0003997,2]
[342665034,1732029045176,-165.50014571,0.0003997,2]
[342665035,1732029045185,-150.0,0.00039971,2]
[342665036,1732029045194,-150.0,0.00039976,2]
[342665037,1732029045204,-241.45,0.0003998,30]
[342665038,1732029045214,-150.0,0.00039982,2]
[342665039,1732029045223,-150.0,0.00039983,2]
[342665040,1732029045232,-426.169468,0.00039986,2]
[342665041,1732029045242,-150.5,0.0003999,30]
[342665042,1732029045253,-150.0,0.0003999,2]
[342665043,1732029045264,-150.0,0.00039993,2]
[342665044,1732029045276,-770.39,0.00039999,2]
[342665045,1732029045285,-770.39,0.00039999,2]
[342665046,1732029045295,-770.39,0.00039999,2]
[342665047,1732029045305,-770.39,0.00039999,2]
[342665048,1732029045314,-500.0,0.00039999,2]
[342665049,1732029045324,-770.39,0.00039999,2]
[342665050,1732029045334,-500.0,0.00039999,2]
[342665051,1732029045345,-770.39,0.00039999,2]
[342665053,1732029045356,-500.0,0.00039999,2]
[342665054,1732029045368,-770.39,0.00039999,2]
[342665055,1732029045378,-500.0,0.00039999,2]
[342665056,1732029045389,-770.39,0.00039999,2]
[342665057,1732029045398,-500.0,0.00039999,2]
[342665058,1732029045407,-218.28,0.00039999,2]
[342665059,1732029045416,-500.0,0.00039999,2]
[342665060,1732029045425,-500.0,0.00039999,2]
[342665061,1732029045435,-500.0,0.00039999,2]
[342665063,1732029045444,-500.0,0.00039999,2]
[342665065,1732029045453,-500.0,0.00039999,2]
[342665066,1732029045462,-500.0,0.00039999,2]
[342665068,1732029045472,-500.0,0.00039999,2]
[342665069,1732029045481,-500.0,0.00039999,2]
[342665070,1732029045490,-500.0,0.00039999,2]
[342665071,1732029045499,-500.0,0.00039999,2]
[342665072,1732029045508,-500.0,0.00039999,2]
[342665073,1732029045518,-500.0,0.00039999,2]
[342665074,1732029045533,-500.0,0.00039999,2]